Cogmind - Beta 14 @@@ ROGUE MODE // 2024.09.04 @ 21:33:16 Player: Syanka Result: Self-destructed Performance ------------- Evolutions (2) 1000 Regions Visited (5) 1000 Robots Destroyed (57) 285 Value Destroyed (1509) 1509 Prototype IDs (27) 540 Alien Tech Used (0) 0 Bonus (-608) -608 TOTAL SCORE: 3726 Bonus ------- Aligned with FarCom 300 Friendly Fire -908 Cogmind --------- Core Integrity 393/550 Matter 300/300 Energy 150/150 System Corruption 0% Temperature Cool (0) Movement Rolling (215) Ox9 Location -8/Materials Parts ------- > --- POWER (1) -------- Light Angular Momentum Engine > --- PROPULSION (2) --- Light Treads Wheel > --- UTILITY (6) ------ Advanced Heat Sink Huge Storage Unit > --- WEAPON (2) ------- Particle Gun Particle Gun > --- INVENTORY (25) --- Nuclear Core Light Nuclear Core Wheel Superbattery (1500) High-capacity Matter Pod (200) Machine Analyzer Hacking Suite Light Assault Rifle Heavy Assault Rifle Autogun Grenade Launcher Rocket Launcher Mining Laser Maul Peak State ------------ > --- POWER ------------ Light Nuclear Core > --- PROPULSION ------- Wheel Wheel > --- UTILITY ---------- Improved Heat Sink Improved Heat Sink Huge Storage Unit Improved Terrain Scanner Light Armor Plating Tractor Beam > --- WEAPON ----------- Particle Gun Beamcaster > --- INVENTORY -------- Ion Engine Light Nuclear Core Light Angular Momentum Engine Light Treads Light Treads Light Treads Light Treads Improved Flight Unit Improved Flight Unit Improved Heat Sink Advanced Heat Sink Superbattery High-capacity Matter Pod Machine Analyzer Light Armor Plating Hacking Suite Light Assault Rifle Autogun Grenade Launcher Rocket Launcher Mining Laser [Rating: 29] Favorites ----------- Power Ion Engine Engine Ion Engine Power Core Light Nuclear Core Propulsion Wheel Treads Light Treads Leg Aluminum Leg Wheel Wheel Utility Huge Storage Unit Device Improved Heat Sink Storage Huge Storage Unit Protection Light Armor Plating Weapon Assault Rifle Energy Gun Beamcaster Ballistic Gun Assault Rifle Launcher Rocket Launcher Impact Weapon Maul Build | -11 -10 -10 -10 -9 -8 ------- Run | Yrd Mat Min Exi Min Mat Slots Evolved 4 | . . . . . 4 Power . | . . . . . . Propulsion . | . . . . . . Utility 4 | . . . . . 4 Weapon . | . . . . . . Parts Attached 124 | 10 40 18 2 8 46 Power 8 | 1 . 1 . . 6 Engine 7 | 1 . 1 . . 5 Core 1 | . . . . . 1 Reactor . | . . . . . . Propulsion 79 | 3 33 12 . 6 25 Treads 40 | . 16 6 . 4 14 Leg 1 | 1 . . . . . Wheel 38 | 2 17 6 . 2 11 Hover . | . . . . . . Flight . | . . . . . . Utility 20 | 4 4 1 2 . 9 Device 12 | 3 1 1 1 . 6 Storage 5 | 1 3 . 1 . . Processor . | . . . . . . Hackware . | . . . . . . Protection 3 | . . . . . 3 Artifact . | . . . . . . Weapon 17 | 2 3 4 . 2 6 Energy Gun 5 | . . 1 . 1 3 Energy Cannon . | . . . . . . Ballistic Gun 9 | 2 3 2 . . 2 Ballistic Cannon . | . . . . . . Launcher 2 | . . 1 . 1 . Special Weapon . | . . . . . . Impact Weapon 1 | . . . . . 1 Slashing Weapon . | . . . . . . Piercing Weapon . | . . . . . . Special Melee Weapon . | . . . . . . Unidentified Prototypes 1 | . . . . . 1 Parts Lost 20 | . 1 4 . . 15 Power 2 | . . 1 . . 1 Propulsion 5 | . . . . . 5 Utility 9 | . 1 1 . . 7 Weapon 4 | . . 2 . . 2 Highest Loss Streak 6 | . 1 2 . . 6 To Critical Strikes . | . . . . . . Average Slot Usage (%) 96 | . 100 98 100 100 87 Engine 12 | . 14 14 14 14 7 Treads 6 | . 11 3 . 5 4 Wheel 19 | . 16 24 28 22 13 Device 16 | . 14 12 13 14 24 Storage 12 | . 14 14 14 14 9 Protection 2 | . . . . . 8 Energy Gun 8 | . . 2 14 13 15 Ballistic Gun 16 | . 28 25 14 14 2 Peak Build Rating 29 | 8 9 15 23 17 29 Average Rating 15 | 6 8 10 15 16 25 On Entrance 10 | . 7 9 15 16 17 Naked Turns . | . . . . . . Heaviest Build 102 | 15 90 93 93 93 102 Greatest Support 40 | 20 40 20 20 40 40 Greatest Overweight (x) 9 | . 4 4 4 4 9 Average Overweight (x) 3 | . . 4 4 3 4 Largest Inventory Capacity 25 | 8 25 25 25 25 25 Average Capacity 21 | 7 14 25 25 25 25 Most Carried 21 | 8 14 18 15 18 21 Average Carried 13 | 4 9 15 14 16 16 Final Capacity 25 | 8 25 25 25 25 25 Final Carried 18 | 7 13 14 15 18 14 Class Distribution -------------------- 72% | Mutant 21% | Scavenger-Skirmisher 4% | Scavenger-Mutant Dominant Class ---------------- Mutant | -10/Materials Mutant | -10/Mines Mutant | -10/Exiles Mutant | -9/Mines Scavenger-Skirmisher | -8/Materials Resources | -11 -10 -10 -10 -9 -8 ----------- Run | Yrd Mat Min Exi Min Mat Matter Collected 2496 | 402 801 554 . 73 666 Remotely 484 | . . . . . 484 Salvage Created 2358 | 182 661 406 . 93 1016 Parts 116 | 18 38 27 . 2 31 Haulers Intercepted 2 | . 2 . . . . Recyclers Shooed 4 | 1 1 1 . 1 . Parts Field Recycled . | . . . . . . Retrieved Matter . | . . . . . . Parts Self-Destructed . | . . . . . . Prevented . | . . . . . . Kills | -11 -10 -10 -10 -9 -8 ------- Run | Yrd Mat Min Exi Min Mat Combat Hostiles Destroyed 43 | . 12 9 . 5 17 Guns 34 | . 12 6 . . 16 AOE 8 | . . 3 . 5 . Classes Destroyed 11 | 3 5 . . 1 2 Worker 3 | 1 1 . . . 1 Tunneler 4 | 4 . . . . . Hauler 2 | . 2 . . . . Recycler 5 | 1 1 1 . 1 1 Mechanic 1 | . . . . . 1 Operator 1 | . 1 . . . . Watcher 2 | . 1 . . . 1 Swarmer 9 | . 6 3 . . . Grunt 27 | . 6 6 . . 15 Sentry 2 | . . . . . 2 Assembled 5 | . . . . 5 . Thug 1 | . . 1 . . . Best Kill Streak 3 | 3 3 3 . 3 3 Combat Bots Only 3 | . 2 3 . 3 3 Max Kills in Single Turn 3 | 1 2 3 . 3 1 Gunslinging . | . . . . . . Exploded 3 | . . 3 . 3 . Melee . | . . . . . . Uniques/NPCs Destroyed . | . . . . . . Combat | -11 -10 -10 -10 -9 -8 -------- Run | Yrd Mat Min Exi Min Mat Hostile Shots Fired 229 | . 70 48 . 5 106 Missed 56 | . 14 10 . 2 30 Damage Taken 2486 | . 639 540 . 90 1217 Core 356 | . 100 89 . 10 157 Absorbed by Shields . | . . . . . . Regen/Repaired (Parts) 126 | . 126 . . . . Core Remaining (%) 60 | 100 . . . 20 . Volleys Fired 203 | 17 63 35 . 12 76 Largest 2 | 2 2 2 . 2 2 Hottest 140 | 40 40 95 . 95 140 Shots Fired 402 | 34 126 70 . 21 151 Gun 398 | 34 126 69 . 18 151 Cannon . | . . . . . . Launcher 4 | . . 1 . 3 . Special . | . . . . . . Kinetic 252 | 34 126 59 . 9 24 Thermal 146 | . . 10 . 9 127 Explosive 4 | . . 1 . 3 . Electromagnetic . | . . . . . . Robot Hit Streak 19 | 5 11 16 . 19 16 Robot Miss Streak 3 | 3 3 2 . 2 3 Penetration Max . | . . . . . . Secondary Targets 5 | . 1 . . . 4 Max Gunslinging Chain 1 | . 1 . . . 1 Shots Hit Robots 272 | 17 82 52 . 15 106 Core Hits 108 | 7 30 20 . 9 42 Critical Kills . | . . . . . . Critical Parts Destroyed 3 | . 2 1 . . . Critical Strikes 16 | . 2 3 . . 11 Burn 13 | . . 2 . . 11 Destroy 3 | . 2 1 . . . Melee Attacks 1 | . . . . . 1 Impact 1 | . . . . . 1 Slashing . | . . . . . . Piercing . | . . . . . . Sneak Attacks . | . . . . . . Combat Hostiles . | . . . . . . Follow-up Attacks . | . . . . . . Damage Inflicted 4769 | 251 1065 977 . 481 1995 Guns 4294 | 251 1064 770 . 238 1971 Cannons . | . . . . . . Explosions 431 | . . 194 . 237 . Melee . | . . . . . . Ramming 44 | . 1 13 . 6 24 Kinetic 2217 | 251 1064 617 . 86 199 Thermal 2077 | . . 153 . 152 1772 Explosive 431 | . . 194 . 237 . Electromagnetic . | . . . . . . Impact . | . . . . . . Slashing . | . . . . . . Piercing . | . . . . . . Highest Corruption . | . . . . . . Average Corruption . | . . . . . . Corruption Purged . | . . . . . . Corruption Blocked . | . . . . . . Overload Shots . | . . . . . . Overflow Damage 23 | . . . . 21 2 Projectiles . | . . . . . . Explosions 21 | . . . . 21 . Melee 2 | . . . . . 2 Knockbacks . | . . . . . . Impact . | . . . . . . Kinetic . | . . . . . . Secondary . | . . . . . . Self-Inflicted Damage 76 | . . 21 . 43 12 Shots 2 | . . 1 . 1 . Rammed 5 | . 1 1 . 2 1 Targets Rammed 5 | . 1 1 . 2 1 Kicked . | . . . . . . Crushed . | . . . . . . Highest Temperature 155 | . 20 15 . . 155 Average Temperature 31 | . 6 5 . . 41 Received Heat Transfer 1260 | . 267 282 . . 711 Siege Activations . | . . . . . . Robots Corrupted 1 | . . . . . 1 Combat Hostiles . | . . . . . . Parts Fried 2 | . . . . . 2 Impact Corruptions 1 | . . . . . 1 Robots Melted 1 | . . . . . 1 Combat Hostiles 1 | . . . . . 1 Parts Melted 14 | . . 1 . . 13 Heat Transferred 5069 | . . 407 . 259 4403 Parts Sabotaged . | . . . . . . Parts Stolen . | . . . . . . Parts Stripped . | . . . . . . Power Chain Reactions . | . . . . . . Alert | -11 -10 -10 -10 -9 -8 ------- Run | Yrd Mat Min Exi Min Mat Peak Influence 320 | 30 320 214 . 16 190 Initial 24 | . 19 24 . . 1 Average 69 | 14 140 61 . . 57 Maximum Alert Level 1 | . 1 1 . . . Low Security (%) 95 | 100 90 93 . 100 100 Level 1 4 | . 9 6 . . . Level 2 . | . . . . . . Level 3 . | . . . . . . Level 4 . | . . . . . . Level 5 . | . . . . . . High Security . | . . . . . . Max Security . | . . . . . . Squads Dispatched 5 | . 2 . . . 3 Investigation 1 | . 1 . . . . Extermination . | . . . . . . Reinforcement 3 | . 1 . . . 2 Assault . | . . . . . . Garrison 1 | . . . . . 1 Intercept . | . . . . . . Searches Triggered . | . . . . . . Construction Impeded . | . . . . . . Haulers Reinforced . | . . . . . . Active Scanning Responses . | . . . . . . Cargo Convoy Interrupts . | . . . . . . Stealth | -11 -10 -10 -10 -9 -8 --------- Run | Yrd Mat Min Exi Min Mat Distress Signals 7 | . 3 . . . 4 Communications Jammed . | . . . . . . Distress Signals . | . . . . . . Times Spotted 75 | . 28 9 . 7 31 Peak Tracking Total 6 | . 5 3 . 4 6 Tactical Retreats 8 | . 4 . . 2 2 Traps | -11 -10 -10 -10 -9 -8 ------- Run | Yrd Mat Min Exi Min Mat Traps Triggered 2 | . 2 . . . . Indirectly . | . . . . . . Trap Hack Attempts . | . . . . . . Triggered . | . . . . . . Disarmed . | . . . . . . Reprogrammed . | . . . . . . Reused . | . . . . . . Traps Extracted . | . . . . . . Installed . | . . . . . . Triggered . | . . . . . . Machines | -11 -10 -10 -10 -9 -8 ---------- Run | Yrd Mat Min Exi Min Mat Machines Disabled 1 | . . . . . 1 Max in Single Turn 1 | . . . . . 1 Machines Repaired . | . . . . . . Machines Dismantled . | . . . . . . Machines Sabotaged . | . . . . . . Overloaded Fab Kills . | . . . . . . Hacking | -11 -10 -10 -10 -9 -8 --------- Run | Yrd Mat Min Exi Min Mat Machines Accessed 13 | . 8 . 2 . 3 Terminals 9 | . 7 . . . 2 Fabricators . | . . . . . . Repair Stations 1 | . 1 . . . . Recycling Units . | . . . . . . Scanalyzers 1 | . . . . . 1 Garrison Access . | . . . . . . Total Hacks 41 | . 27 . 2 . 12 Successful 21 | . 12 . 2 . 7 Failed 20 | . 15 . . . 5 Catastrophic . | . . . . . . Database Lockouts . | . . . . . . Manual 21 | . 13 . 1 . 7 Terminals 31 | . 21 . . . 10 Fabricators . | . . . . . . Repair Stations 6 | . 6 . . . . Recycling Units . | . . . . . . Scanalyzers 2 | . . . . . 2 Garrison Access . | . . . . . . Terminal Hacks 6 | . 3 . 2 . 1 Record 1 | . . . 1 . . Robot Analysis 1 | . 1 . . . . Prototype ID Bank 1 | . 1 . . . . Locate Traps 1 | . 1 . . . . Zone Layout 1 | . . . . . 1 Derelict Proto ID Bank 1 | . . . 1 . . Fabricator Hacks . | . . . . . . Repair Station Hacks 3 | . 3 . . . . Scan Component 2 | . 2 . . . . Repair 1 | . 1 . . . . Recycling Unit Hacks . | . . . . . . Scanalyzer 1 | . . . . . 1 Insert Component 1 | . . . . . 1 Garrison Access Hacks . | . . . . . . Unauthorized Hacks 11 | . 6 . . . 5 Terminals 11 | . 6 . . . 5 Assimilate 1 | . . . . . 1 Botnet 3 | . 1 . . . 2 Skim 7 | . 5 . . . 2 Fabricators . | . . . . . . Repair Stations . | . . . . . . Recycling Units . | . . . . . . Scanalyzers . | . . . . . . Garrison Access . | . . . . . . Data Cores Recovered . | . . . . . . Used . | . . . . . . Hacking Detections 11 | . 8 . . . 3 Full Trace Events 1 | . 1 . . . . Feedback Events . | . . . . . . Feedback Blocked . | . . . . . . Robot Schematics Acquired . | . . . . . . Robots Built . | . . . . . . Authchips . | . . . . . . Time . | . . . . . . Total Robot Build Rating . | . . . . . . Part Schematics Acquired . | . . . . . . Parts Built . | . . . . . . Authchips . | . . . . . . Time . | . . . . . . Total Part Build Rating . | . . . . . . Parts Repaired 1 | . 1 . . . . Time 26 | . 26 . . . . Parts Recycled . | . . . . . . Recycled Matter . | . . . . . . Retrieved Matter . | . . . . . . Retrieved Components . | . . . . . . Parts Scanalyzed 1 | . . . . . 1 Part Schematics Acquired . | . . . . . . Parts Damaged . | . . . . . . Bothacking | -11 -10 -10 -10 -9 -8 ------------ Run | Yrd Mat Min Exi Min Mat Used RIF Installer . | . . . . . . Robots Hacked . | . . . . . . Non-combat . | . . . . . . Combat . | . . . . . . Robot Hacks Applied . | . . . . . . Relay Couplers Released . | . . . . . . Fabnet Peak Effective % . | . . . . . . Robots Rewired . | . . . . . . Allies Hacked . | . . . . . . Hacks Repelled . | . . . . . . Allies | -11 -10 -10 -10 -9 -8 -------- Run | Yrd Mat Min Exi Min Mat Total Allies . | . . . . . . Largest Group . | . . . . . . Highest-Rated Group . | . . . . . . Highest-Rated Ally . | . . . . . . Total Orders . | . . . . . . Ally Attacks . | . . . . . . Total Damage . | . . . . . . Kills . | . . . . . . Allies Corrupted . | . . . . . . Allies Melted . | . . . . . . Intel | -11 -10 -10 -10 -9 -8 ------- Run | Yrd Mat Min Exi Min Mat Robot Analysis Total 1 | . 1 . . . . Derelict Logs Recovered 4 | . . 3 . 1 . Drone Launches . | . . . . . . Drone Recoveries . | . . . . . . Exploration | -11 -10 -10 -10 -9 -8 ------------- Run | Yrd Mat Min Exi Min Mat Turns Passed 4630 | 149 1264 789 312 867 1249 Spaces Moved 2467 | 91 696 438 221 503 518 Core 4 | 4 . . . . . Treads 122 | . 50 . . 35 37 Legs . | . . . . . . Wheels 2341 | 87 646 438 221 468 481 Hover . | . . . . . . Flight . | . . . . . . Fastest Speed 50 | 50 80 140 140 140 140 Average Speed 133 | 78 100 140 140 152 158 Slowest Speed 320 | 80 160 140 140 320 320 Overloaded Moves . | . . . . . . Propulsion Burnouts . | . . . . . . Robots Hopped . | . . . . . . Cave-ins Triggered . | . . . . . . Exploration Rate (%) 51 | 4 93 69 60 54 31 Regions Visited 5 Branch Regions 3 Pre-discovered Areas 2 | . . 1 1 . . Known Exits Taken . | . . . . . . Unknown Exits Taken 5 | 1 1 1 1 1 . Scrap Searched 1 | . . 1 . . . Spaces Dug 1 | . . . . . 1 Terrain Destroyed 32 | . . 11 . 20 1 Melee 1 | . . . . . 1 Projectile . | . . . . . . AOE 31 | . . 11 . 20 . Terrain Rammed . | . . . . . . Walls Destroyed . | . . . . . . Machines Disabled . | . . . . . . Actions | -11 -10 -10 -10 -9 -8 --------- Run | Yrd Mat Min Exi Min Mat Total 3376 | 132 1126 538 223 575 782 Wait 506 | . 306 36 . 48 116 Move 2462 | 90 695 437 220 502 518 Hop . | . . . . . . Pick Up 45 | 9 11 8 1 3 13 Fast Attach 10 | 8 . . . . 2 Attach 22 | . 2 4 . . 16 Detach 5 | 1 1 . . . 3 Swap 92 | 2 38 14 2 8 28 Drop 25 | 5 9 3 . . 8 Fire 203 | 17 63 35 . 12 76 Melee 1 | . . . . . 1 Ram 3 | . 1 1 . . 1 Kick . | . . . . . . Crush 2 | . . . . 2 . Escape Stasis . | . . . . . . Rewire . | . . . . . . Trap . | . . . . . . Miscellaneous . | . . . . . . Route ------- -11/Scrapyard -10/Materials (discovered 5 exits: *Mat x3 / [*Min x2]) -10/Mines (discovered 2 exits: Mat / *Exi) -10/Exiles -9/Mines -8/Materials History --------- Turn | Location | Event 11 | -11/Scrapyard | Discovered new exit (range 16) 150 | -11/Scrapyard | Entered Materials 150 | -10/Materials | Discovered new exit (range 8) 309 | -10/Materials | Discovered new exit (range 11) 328 | -10/Materials | Build established: Mutant 335 | -10/Materials | Discovered new exit (range 16) 848 | -10/Materials | Discovered new exit (range 16) 1087 | -10/Materials | Discovered new exit (range 16) 1384 | -10/Materials | Learned location of 1 exit from Storage 1395 | -10/Materials | Repaired Lgt. Treads 1414 | -10/Materials | Entered Mines 1474 | -10/Mines | Met a Derelict bent on vengeance 1814 | -10/Mines | Received a Rocket Launcher from a helpful Derelict 1952 | -10/Mines | Identified exit to Materials 1988 | -10/Mines | Core integrity fell below 50% 2074 | -10/Mines | Learned Materials trap positions 2196 | -10/Mines | Deemed a non-threat by the Exiles lab entrance 2198 | -10/Mines | Discovered new exit (range 5) 2203 | -10/Mines | Entered Exiles 2236 | -10/Exiles | Met 8R-AWN 2261 | -10/Exiles | Met EX-HEX 2304 | -10/Exiles | Met EX-BIN 2321 | -10/Exiles | Aligned with FarCom system 2322 | -10/Exiles | Given EX-Vault access code 2357 | -10/Exiles | Opened EX-Vault 2367 | -10/Exiles | Found Superbattery 2398 | -10/Exiles | Warned to stay clear of 0b10 Research branches 2418 | -10/Exiles | Exiles lab attacked by MAIN.C 2451 | -10/Exiles | Learned location of Zion (-7) 2499 | -10/Exiles | Discovered new exit (range 14) 2515 | -10/Exiles | Left Exiles lab with Superbattery 2515 | -10/Exiles | Entered Mines 2601 | -9/Mines | Learned Materials non-interactive machine intel 2712 | -9/Mines | Discovered new exit (range 5) 2825 | -9/Mines | YI-UF0 nonchalantly dropped a Grenade Launcher on the ground 3173 | -9/Mines | Assembled infested the area 3382 | -9/Mines | Entered Materials 3382 | -8/Materials | Evolved 4 slots: Utility x4 3383 | -8/Materials | Loaded intel: 21 trap records 3384 | -8/Materials | Loaded intel: 45 non-interactive machine locations 3677 | -8/Materials | Build established: Scavenger-Skirmisher 3864 | -8/Materials | Garrison activated, responded to threat 4120 | -8/Materials | Lost 6 parts (3n3u) 4535 | -8/Materials | Lost 4 parts (3u1w) 4631 | -8/Materials | Self-destructed Last Messages --------------- 04521_ Aluminum Leg melted. 04521_ G-47 Trooper destroyed. 04530_ Acquired 48 matter. 04531_ Acquired 34 matter. 04538_ K-01 Serf collects debris. 04539_ Connecting with Repair Station... 04542_ K-01 Serf collects debris. 04545_ ALERT: Hostiles spotted, dispatching reinforcements to Terminal M011. 04545_ K-01 Serf collects debris. 04581_ Acquired Hvy. Assault Rifle. 04600_ G-47 Trooper suffers critical hit (Burn). 04604_ Lgt. Angular Momentum Engine destroyed. 04607_ Lgt. Nuclear Core melted. 04607_ G-47 Trooper destroyed. 04613_ G-47 Trooper suffers critical hit (Burn). 04619_ G-47 Trooper destroyed. 04620_ Acquired 15 matter. 04622_ K-01 Serf cleans the Atomic Centrifuge. 04628_ Atomic Centrifuge disabled. Map ----- +----------------------------------------------------+ | ?????????????????????????????????????????????????# | | ????????????????????????????????????????????????## | | ??????????????????????????????????????####???????# | | ?????????????????????????????????????? #???##??# | | ????????????????????????????????#??""" #??????## | | ?????????????????????????? ?????# """ #?????#?# | | ????????????????????????????????# """ ! #????#?## | | ??????????????????????"""?"""???# #????##?# | | ??????????????????????"""?"""???# """ #?#?##### | | ??????????????????????"""?"""???# """ ###??#??# | | ????????????????????????????????? """ #???????# | | ??????????????????????????????????? ???#?##?## | | ??????????????????? ###+#############+############ | | ??????????????????? g | | ???????????s?????Y? b g % | | ??????????????g?g?? | | ?????????????????? ??########## ##### ########## | | ????????????????????########??# #???# #??#??#?## | | ???????????????#????# #??# #???# ##????#??# | | ???????????????# ???# === #??# #?#?# #???#???#? | | ??????????"""??#g ??# === #??#^^^#???# #?#???#?## | | ??????????"""??# ?#* === ##?#^^^#?#?# ##???###?# | | ??????????"""??# ?# ##?# ###?# ########?# | | ??????????????## ## %% #??# #???# ##?? | | ????????# ##### ###+####??# #???####### ##?# | | ??????? k= @ #### # """ ?#??# #### | | ??????? #?"""?????# | | ??????? w #?"""?????# ## | | ????????###+### """ """ """# ?????#??# ## | | ??????????????## "" """ R"#? ?? ?#?## + | | ???????????????# " " """ """#????? ??## # | | ???????????????# t ###+####### # | | ??????????"""??# % a # | | ??????????"""??# + | | ??????????"""??# w #^ | | ???????????????# ########" "#######+######### # | | ??????????"""??# ???????#####?### !# # # | | ??"""""???"""??# ??????????????## # T # # | | ??"""""???"""??# ????? ??????##?# """ # # ## | | ??"""""????????# ???""" ????????# """ # # ## | | ??"""""????????# ???""" ????##??# """ # + ^ | | ??"""""????????# ????"""??????##?# # # | | ??"""""????????# ????????##??#???######## # | | ??"""""????????# ??????????????????#????# # ^ | | ???????????????# ????????????????????#??# # | | ???????????????# ???????????#???????????######^^ | | ???????????????/ ????????????#????? ??????????# | | ???????????????????#??????? ???? ? ?? ?#??????# | | ?????????????????????"""?"""?? ??? """????????? | | ?????????????????????"""?"""?? ????"""????????? | +----------------------------------------------------+ Best States ------------- Heat Dissipation 73 Energy Generation 18 Energy Capacity 1750 Matter Stores 300 Matter Capacity 300 Sight Range 16 Terrain Scan Range 16 Terrain Scan Density 10 Armor Coverage 300 Evasion (%) 44 Recoil Reduction 2 Item Schematics ----------------- None Robot Schematics ------------------ None Fabricated ------------ Nothing Alien Tech Used ----------------- None Achievements -------------- None Challenges ------------ None Game ------ Seed TargetingExpertWell Manual? 0 Play Time 00:36:03 Cumulative 136.1 hours Start 2024.09.04 @ 09:42:43 End 2024.09.04 @ 21:33:16 Sessions 4 Manual Loads 0 Difficulty Rogue Special Mode None Game No. 83 Rogue 70 Adventurer 13 Explorer 0 Win Type - Total 2 Types 2/0/0/0/0/0/0/0/0 Lore% 49 Gallery% 61 Achievement% 50 Wizard Run 0 Options --------- Layout 2 ASCII 0 Keyboard 1 Movement Numpad Keybinds 0 Fullscreen 2 Font 16/Swanston Map View 55x47 Zoom Use 0% Tactical HUD 1 Map Filters NONE Filters NONE Steam 0 RUN: f00656aa-3715-4a29-8f36-6d6efe4e65bc